{"text_format":"1","workbook":"xlsx","n_sheets":3,"sheets":["GM aktas","Suvestine","darbinis"],"not_rendered":{"charts":0,"images":1,"macros":1,"external_links":0,"defined_names":32,"comments":1,"pivot_tables":0},"unopened":[],"bounds":{"document_bytes":16777216,"sheet_cells":100000,"rows_first":2000,"rows_last":500,"rows_between":2000,"halvings":0,"cell_chars":16384,"cell_head_chars":4096},"cells_cut":0,"cells_raw":0,"read":"whole","date_system":"1900"}

{"sheet":"GM aktas","index":0,"n_rows":42,"n_cols":16,"rows_kept":42,"cut":false,"hidden":false,"merged":[[23,2,23,5],[14,2,14,5],[16,2,16,5],[18,2,18,5],[6,2,6,5],[8,2,8,5],[15,2,15,5],[1,0,1,7],[2,1,2,7],[10,2,10,5],[12,2,12,5],[3,0,3,7]]}
[null,null,null,null,null,null,null,"Priedas Nr. 1"]
["GRĮŽTAMŲJŲ MEDŽIAGŲ AKTAS"]
[null,"Galios transformatoriams ir kompensacinėms ritėms"]
["Akto forma galioja nuo 2026.07.01 iki 2026.09.30"]
[]
[]
["1.","Rangovas","pasirinkti",null,null,null,null,null,null,null,null,null,null,null,{"$f":"IF(C7=\"pasirinkti\",1,0)","v":1}]
[]
["2.","Rangos darbų sutarties Nr.","užpildykite sutarties Nr.",null,null,null,null,null,null,null,null,null,null,null,{"$f":"IF(C9=\"užpildykite sutarties Nr.\",1,0)","v":1}]
[]
["3.","Rangos darbų užsakymo Nr.","užpildyti",null,null,null,null,null,null,null,null,null,null,null,{"$f":"IF(C11=\"užpildyti\",1,0)","v":1}]
[]
["4.","Objekto pavadinimas pagal klasifikatorių:","užpildyti",null,null,null,null,null,null,null,null,null,null,null,{"$f":"IF(C13=\"Užpildyti\",1,0)","v":1}]
[]
["5.","Investicinis Nr./Darbų Nr. (iš TIVIS)","užpildyti",null,null,null,null,null,null,null,null,null,null,null,{"$f":"IF(C15=\"užpildyti\",1,0)","v":1}]
["6.","Objekto Nr. (iš TIVIS)","užpildyti"]
["7.","Grįžtamųjų medžiagų atsiradimo priežastis: ","pasirinkti",null,null,null,null,null,null,null,null,null,null,null,{"$f":"IF(C17=\"pasirinkti\",1,0)","v":1}]
[]
["8.","Supirktuvės akto data:","202x-xx-xx",null,null,null,null,null,null,null,null,null,null,null,{"$f":"IF(C19=\"202x-xx-xx\",1,IF(C19=\"\",1,0))","v":1}]
[]
[null,null,null,null,null,null,null,null,null,null,null,null,null,null,null,{"$f":"SUM(O7,O9,O11,O13,O15,O17,O19,O32,O38,O39,O41,P32,O24,)","v":9}]
[]
[]
[null,"Grįžtamųjų medžiagų supirkėjas*","pasirinkti",null,null,null,{"$f":"IF(C24<>\"pasirinkti\",\"Privaloma užpildyti GPAIS (atliekų lydraštis) ir iVAZ (el. krovinio važtaraštis) ESO vardu.\",\"\")","v":""},null,null,null,null,null,null,null,{"$f":"IF(C24=\"\",1,0)","v":0}]
[null,"*pildoma jei grįžtamosios medžiagos pristatomos į supirktuvę"]
[]
[]
[]
[]
["Jei objekte yra 0,4-10 kV galios transformatoriai arba  35 kV ir 10 kV kompensacinės ritės , ESO Techninis prižiūrėtojas nurodo, ką rangovas turi su jais padaryti"]
["Eilės Nr.","Grįžtamųjų medžiagų pavadinimas","Inventorinis Nr.","Gamyklinis Nr.","Mato vnt.","Kiekis","Rangovo veiksmai","Dynamics kodas"]
[1,"pasirinkti",null,null,"vnt.",{"$f":"IF(B32<>\"pasirinkti\",1,\"\")","v":""},"pasirinkti",{"$f":"IF(B32=\"pasirinkti\",\"\",VLOOKUP(B32,darbinis!A:B,2,0))","v":""},{"$f":"IF(B32=\"pasirinkti\",\"\",IF(C32=\"\",\"Suveskite Inventorinį Nr. \",\"\"))&IF(B32=\"pasirinkti\",\"\",IF(D32=\"\",\"Suveskite Gamyklinį Nr.\",\"\"))&IF(B32=\"pasirinkti\",\"\",IF(G32=\"pasirinkti\",\" Pasirinkite Rangovo veiksmus\",\"\"))","v":""},null,null,null,null,null,{"$f":"IF(I32<>\"\",1,0)","v":0},{"$f":"IF(B32=\"pasirinkti\",\"\",IF(G32=\"Rangovas pristato į supirktuvę\",IF($C$24=\"pasirinkti\",1,0),\"\"))","v":""}]
[null,null,null,null,"iš Viso:",{"$f":"SUM(F32:F32)","v":0}]
[null,null,null,null,null,null,null,null,null,null,null,null,null,null,null,{"$f":"SUM(P32:P33)","v":0}]
[]
[]
[]
[null,"Atsakingas asmuo\n(Techninis prižiūrėtojas)",null,null,null,null,null,{"$f":"IFERROR(IF(G38<>\"\",VLOOKUP(G38,darbinis!H:I,2,0),\"\"),\"\")","v":""},null,null,null,null,null,null,{"$f":"IF(G38=\"\",1,0)","v":1}]
[null,null,null,null,null,null,"Vardas, pavardė, parašas"]
[]
[null,"Darbų vykdytojas\n(Rangovas)",null,null,null,null,null,null,null,null,null,null,null,null,{"$f":"IF(G41=\"\",1,0)","v":1}]
[null,null," ",null,null,null,"Vardas, pavardė, parašas"]

{"sheet":"Suvestine","index":1,"n_rows":24,"n_cols":12,"rows_kept":24,"cut":false,"hidden":false,"merged":[]}
[]
[{"$f":"'GM aktas'!A7","v":"1."},{"$f":"'GM aktas'!B7","v":"Rangovas"},{"$f":"'GM aktas'!C7","v":"pasirinkti"}]
[{"$f":"'GM aktas'!A9","v":"2."},{"$f":"'GM aktas'!B9","v":"Rangos darbų sutarties Nr."},{"$f":"'GM aktas'!C9","v":"užpildykite sutarties Nr."}]
[{"$f":"'GM aktas'!A11","v":"3."},{"$f":"'GM aktas'!B11","v":"Rangos darbų užsakymo Nr."},{"$f":"'GM aktas'!C11","v":"užpildyti"}]
[{"$f":"'GM aktas'!A13","v":"4."},{"$f":"'GM aktas'!B13","v":"Objekto pavadinimas pagal klasifikatorių:"},{"$f":"'GM aktas'!C13","v":"užpildyti"}]
[{"$f":"'GM aktas'!A15","v":"5."},{"$f":"'GM aktas'!B15","v":"Investicinis Nr./Darbų Nr. (iš TIVIS)"},{"$f":"'GM aktas'!C15","v":"užpildyti"}]
[{"$f":"'GM aktas'!A16","v":"6."},{"$f":"'GM aktas'!B16","v":"Objekto Nr. (iš TIVIS)"},{"$f":"'GM aktas'!C16","v":"užpildyti"}]
[{"$f":"'GM aktas'!A17","v":"7."},{"$f":"'GM aktas'!B17","v":"Grįžtamųjų medžiagų atsiradimo priežastis: "},{"$f":"'GM aktas'!C17","v":"pasirinkti"}]
[{"$f":"'GM aktas'!A19","v":"8."},{"$f":"'GM aktas'!B19","v":"Supirktuvės akto data:"},{"$f":"'GM aktas'!C19","v":"202x-xx-xx"}]
[]
[null,"Grįžtamųjų medžiagų supirkėjas"]
[null,{"$f":"'GM aktas'!C24","v":"pasirinkti"}]
[]
[null,"Prekės pavadinimas","Inventorinis Nr.","Gamyklinis Nr.","Mato vnt.","Kiekis","Rangovo veiksmais","Dynamics kodas","Dynamics pavadinimas","Kaina",null,"Sk"]
[null,{"$f":"IF('GM aktas'!B32=\"PASIRINKTI\",\"\",'GM aktas'!B32)","v":""},{"$f":"IF('GM aktas'!$B$32=\"PASIRINKTI\",\"\",'GM aktas'!C32)","v":""},{"$f":"IF('GM aktas'!$B$32=\"PASIRINKTI\",\"\",'GM aktas'!D32)","v":""},{"$f":"IF('GM aktas'!$B$32=\"PASIRINKTI\",\"\",'GM aktas'!E32)","v":""},{"$f":"IF('GM aktas'!$B$32=\"PASIRINKTI\",\"\",'GM aktas'!F32)","v":""},{"$f":"IF('GM aktas'!$B$32=\"PASIRINKTI\",\"\",'GM aktas'!G32)","v":""},{"$f":"IF('GM aktas'!$B$32=\"PASIRINKTI\",\"\",'GM aktas'!H32)","v":""},{"$f":"IF(H15=\"\",\"\",VLOOKUP(H15,darbinis!B:C,2,0))","v":""},{"$f":"IF($B$12<>\"pasirinkti\",IF(G15=\"Rangovas pristato į supirktuvę\",IF($B$12=\"Metransa, UAB (Vilniaus regionas)\",VLOOKUP(H15,darbinis!B:E,3,0),IF($B$12=\"Vidvestuma, UAB (Kauno regionas)\",VLOOKUP(H15,darbinis!B:E,4,0),IF($B$12=\"Vidvestuma, UAB (Klaipėdos regionas)\",VLOOKUP(H15,darbinis!B:G,5,0),IF($B$12=\"Vidvestuma, UAB (Šiaulių regionas)\",VLOOKUP(H15,darbinis!B:G,5,0),IF($B$12=\"Vidvestuma, UAB (Utenos regionas)\",VLOOKUP(H15,darbinis!B:G,6,0),\"\")))))))","v":false},null,{"$f":"IF(B15=\"\",0,1)","v":0}]
[null,{"$f":"IF('GM aktas'!#REF!=\"PASIRINKTI\",\"\",'GM aktas'!#REF!)","v":{"$error":"#REF!"}},{"$f":"IF('GM aktas'!#REF!=\"PASIRINKTI\",\"\",'GM aktas'!#REF!)","v":{"$error":"#REF!"}},{"$f":"IF('GM aktas'!#REF!=\"PASIRINKTI\",\"\",'GM aktas'!#REF!)","v":{"$error":"#REF!"}},{"$f":"IF('GM aktas'!#REF!=\"PASIRINKTI\",\"\",'GM aktas'!#REF!)","v":{"$error":"#REF!"}},{"$f":"IF('GM aktas'!#REF!=\"PASIRINKTI\",\"\",'GM aktas'!#REF!)","v":{"$error":"#REF!"}},{"$f":"IF('GM aktas'!#REF!=\"PASIRINKTI\",\"\",'GM aktas'!#REF!)","v":{"$error":"#REF!"}},{"$f":"IF('GM aktas'!#REF!=\"PASIRINKTI\",\"\",'GM aktas'!#REF!)","v":{"$error":"#REF!"}},{"$f":"IF(H16=\"\",\"\",VLOOKUP(H16,darbinis!B:C,2,0))","v":{"$error":"#REF!"}},{"$f":"IF($B$12<>\"pasirinkti\",IF(G16=\"Rangovas pristato į supirktuvę\",IF($B$12=\"Metransa, UAB\",VLOOKUP(H16,darbinis!B:E,3,0),VLOOKUP(H16,darbinis!B:E,4,0)),\"\"),\"\")","v":""},null,{"$f":"IF(B16=\"\",0,1)","v":{"$error":"#REF!"}}]
[null,{"$f":"IF('GM aktas'!#REF!=\"PASIRINKTI\",\"\",'GM aktas'!#REF!)","v":{"$error":"#REF!"}},{"$f":"IF('GM aktas'!#REF!=\"PASIRINKTI\",\"\",'GM aktas'!#REF!)","v":{"$error":"#REF!"}},{"$f":"IF('GM aktas'!#REF!=\"PASIRINKTI\",\"\",'GM aktas'!#REF!)","v":{"$error":"#REF!"}},{"$f":"IF('GM aktas'!#REF!=\"PASIRINKTI\",\"\",'GM aktas'!#REF!)","v":{"$error":"#REF!"}},{"$f":"IF('GM aktas'!#REF!=\"PASIRINKTI\",\"\",'GM aktas'!#REF!)","v":{"$error":"#REF!"}},{"$f":"IF('GM aktas'!#REF!=\"PASIRINKTI\",\"\",'GM aktas'!#REF!)","v":{"$error":"#REF!"}},{"$f":"IF('GM aktas'!#REF!=\"PASIRINKTI\",\"\",'GM aktas'!#REF!)","v":{"$error":"#REF!"}},{"$f":"IF(H17=\"\",\"\",VLOOKUP(H17,darbinis!B:C,2,0))","v":{"$error":"#REF!"}},{"$f":"IF($B$12<>\"pasirinkti\",IF(G17=\"Rangovas pristato į supirktuvę\",IF($B$12=\"Metransa, UAB\",VLOOKUP(H17,darbinis!B:E,3,0),VLOOKUP(H17,darbinis!B:E,4,0)),\"\"),\"\")","v":""},null,{"$error":"#REF!"}]
[null,{"$f":"IF('GM aktas'!#REF!=\"PASIRINKTI\",\"\",'GM aktas'!#REF!)","v":{"$error":"#REF!"}},{"$f":"IF('GM aktas'!#REF!=\"PASIRINKTI\",\"\",'GM aktas'!#REF!)","v":{"$error":"#REF!"}},{"$f":"IF('GM aktas'!#REF!=\"PASIRINKTI\",\"\",'GM aktas'!#REF!)","v":{"$error":"#REF!"}},{"$f":"IF('GM aktas'!#REF!=\"PASIRINKTI\",\"\",'GM aktas'!#REF!)","v":{"$error":"#REF!"}},{"$f":"IF('GM aktas'!#REF!=\"PASIRINKTI\",\"\",'GM aktas'!#REF!)","v":{"$error":"#REF!"}},{"$f":"IF('GM aktas'!#REF!=\"PASIRINKTI\",\"\",'GM aktas'!#REF!)","v":{"$error":"#REF!"}},{"$f":"IF('GM aktas'!#REF!=\"PASIRINKTI\",\"\",'GM aktas'!#REF!)","v":{"$error":"#REF!"}},{"$f":"IF(H18=\"\",\"\",VLOOKUP(H18,darbinis!B:C,2,0))","v":{"$error":"#REF!"}},{"$f":"IF($B$12<>\"pasirinkti\",IF(G18=\"Rangovas pristato į supirktuvę\",IF($B$12=\"Metransa, UAB\",VLOOKUP(H18,darbinis!B:E,3,0),VLOOKUP(H18,darbinis!B:E,4,0)),\"\"),\"\")","v":""},null,{"$error":"#REF!"}]
[null,{"$f":"IF('GM aktas'!#REF!=\"PASIRINKTI\",\"\",'GM aktas'!#REF!)","v":{"$error":"#REF!"}},{"$f":"IF('GM aktas'!#REF!=\"PASIRINKTI\",\"\",'GM aktas'!#REF!)","v":{"$error":"#REF!"}},{"$f":"IF('GM aktas'!#REF!=\"PASIRINKTI\",\"\",'GM aktas'!#REF!)","v":{"$error":"#REF!"}},{"$f":"IF('GM aktas'!#REF!=\"PASIRINKTI\",\"\",'GM aktas'!#REF!)","v":{"$error":"#REF!"}},{"$f":"IF('GM aktas'!#REF!=\"PASIRINKTI\",\"\",'GM aktas'!#REF!)","v":{"$error":"#REF!"}},{"$f":"IF('GM aktas'!#REF!=\"PASIRINKTI\",\"\",'GM aktas'!#REF!)","v":{"$error":"#REF!"}},{"$f":"IF('GM aktas'!#REF!=\"PASIRINKTI\",\"\",'GM aktas'!#REF!)","v":{"$error":"#REF!"}},{"$f":"IF(H19=\"\",\"\",VLOOKUP(H19,darbinis!B:C,2,0))","v":{"$error":"#REF!"}},{"$f":"IF($B$12<>\"pasirinkti\",IF(G19=\"Rangovas pristato į supirktuvę\",IF($B$12=\"Metransa, UAB\",VLOOKUP(H19,darbinis!B:E,3,0),VLOOKUP(H19,darbinis!B:E,4,0)),\"\"),\"\")","v":""},null,{"$error":"#REF!"}]
[null,{"$f":"IF('GM aktas'!#REF!=\"PASIRINKTI\",\"\",'GM aktas'!#REF!)","v":{"$error":"#REF!"}},{"$f":"IF('GM aktas'!#REF!=\"PASIRINKTI\",\"\",'GM aktas'!#REF!)","v":{"$error":"#REF!"}},{"$f":"IF('GM aktas'!#REF!=\"PASIRINKTI\",\"\",'GM aktas'!#REF!)","v":{"$error":"#REF!"}},{"$f":"IF('GM aktas'!#REF!=\"PASIRINKTI\",\"\",'GM aktas'!#REF!)","v":{"$error":"#REF!"}},{"$f":"IF('GM aktas'!#REF!=\"PASIRINKTI\",\"\",'GM aktas'!#REF!)","v":{"$error":"#REF!"}},{"$f":"IF('GM aktas'!#REF!=\"PASIRINKTI\",\"\",'GM aktas'!#REF!)","v":{"$error":"#REF!"}},{"$f":"IF('GM aktas'!#REF!=\"PASIRINKTI\",\"\",'GM aktas'!#REF!)","v":{"$error":"#REF!"}},{"$f":"IF(H20=\"\",\"\",VLOOKUP(H20,darbinis!B:C,2,0))","v":{"$error":"#REF!"}},{"$f":"IF($B$12<>\"pasirinkti\",IF(G20=\"Rangovas pristato į supirktuvę\",IF($B$12=\"Metransa, UAB\",VLOOKUP(H20,darbinis!B:E,3,0),VLOOKUP(H20,darbinis!B:E,4,0)),\"\"),\"\")","v":""},null,{"$error":"#REF!"}]
[null,{"$f":"IF('GM aktas'!#REF!=\"PASIRINKTI\",\"\",'GM aktas'!#REF!)","v":{"$error":"#REF!"}},{"$f":"IF('GM aktas'!#REF!=\"PASIRINKTI\",\"\",'GM aktas'!#REF!)","v":{"$error":"#REF!"}},{"$f":"IF('GM aktas'!#REF!=\"PASIRINKTI\",\"\",'GM aktas'!#REF!)","v":{"$error":"#REF!"}},{"$f":"IF('GM aktas'!#REF!=\"PASIRINKTI\",\"\",'GM aktas'!#REF!)","v":{"$error":"#REF!"}},{"$f":"IF('GM aktas'!#REF!=\"PASIRINKTI\",\"\",'GM aktas'!#REF!)","v":{"$error":"#REF!"}},{"$f":"IF('GM aktas'!#REF!=\"PASIRINKTI\",\"\",'GM aktas'!#REF!)","v":{"$error":"#REF!"}},{"$f":"IF('GM aktas'!#REF!=\"PASIRINKTI\",\"\",'GM aktas'!#REF!)","v":{"$error":"#REF!"}},{"$f":"IF(H21=\"\",\"\",VLOOKUP(H21,darbinis!B:C,2,0))","v":{"$error":"#REF!"}},{"$f":"IF($B$12<>\"pasirinkti\",IF(G21=\"Rangovas pristato į supirktuvę\",IF($B$12=\"Metransa, UAB\",VLOOKUP(H21,darbinis!B:E,3,0),VLOOKUP(H21,darbinis!B:E,4,0)),\"\"),\"\")","v":""},null,{"$error":"#REF!"}]
[null,{"$f":"IF('GM aktas'!#REF!=\"PASIRINKTI\",\"\",'GM aktas'!#REF!)","v":{"$error":"#REF!"}},{"$f":"IF('GM aktas'!#REF!=\"PASIRINKTI\",\"\",'GM aktas'!#REF!)","v":{"$error":"#REF!"}},{"$f":"IF('GM aktas'!#REF!=\"PASIRINKTI\",\"\",'GM aktas'!#REF!)","v":{"$error":"#REF!"}},{"$f":"IF('GM aktas'!#REF!=\"PASIRINKTI\",\"\",'GM aktas'!#REF!)","v":{"$error":"#REF!"}},{"$f":"IF('GM aktas'!#REF!=\"PASIRINKTI\",\"\",'GM aktas'!#REF!)","v":{"$error":"#REF!"}},{"$f":"IF('GM aktas'!#REF!=\"PASIRINKTI\",\"\",'GM aktas'!#REF!)","v":{"$error":"#REF!"}},{"$f":"IF('GM aktas'!#REF!=\"PASIRINKTI\",\"\",'GM aktas'!#REF!)","v":{"$error":"#REF!"}},{"$f":"IF(H22=\"\",\"\",VLOOKUP(H22,darbinis!B:C,2,0))","v":{"$error":"#REF!"}},{"$f":"IF($B$12<>\"pasirinkti\",IF(G22=\"Rangovas pristato į supirktuvę\",IF($B$12=\"Metransa, UAB\",VLOOKUP(H22,darbinis!B:E,3,0),VLOOKUP(H22,darbinis!B:E,4,0)),\"\"),\"\")","v":""},null,{"$error":"#REF!"}]
[null,{"$f":"IF('GM aktas'!#REF!=\"PASIRINKTI\",\"\",'GM aktas'!#REF!)","v":{"$error":"#REF!"}},{"$f":"IF('GM aktas'!#REF!=\"PASIRINKTI\",\"\",'GM aktas'!#REF!)","v":{"$error":"#REF!"}},{"$f":"IF('GM aktas'!#REF!=\"PASIRINKTI\",\"\",'GM aktas'!#REF!)","v":{"$error":"#REF!"}},{"$f":"IF('GM aktas'!#REF!=\"PASIRINKTI\",\"\",'GM aktas'!#REF!)","v":{"$error":"#REF!"}},{"$f":"IF('GM aktas'!#REF!=\"PASIRINKTI\",\"\",'GM aktas'!#REF!)","v":{"$error":"#REF!"}},{"$f":"IF('GM aktas'!#REF!=\"PASIRINKTI\",\"\",'GM aktas'!#REF!)","v":{"$error":"#REF!"}},{"$f":"IF('GM aktas'!#REF!=\"PASIRINKTI\",\"\",'GM aktas'!#REF!)","v":{"$error":"#REF!"}},{"$f":"IF(H23=\"\",\"\",VLOOKUP(H23,darbinis!B:C,2,0))","v":{"$error":"#REF!"}},{"$f":"IF($B$12<>\"pasirinkti\",IF(G23=\"Rangovas pristato į supirktuvę\",IF($B$12=\"Metransa, UAB\",VLOOKUP(H23,darbinis!B:E,3,0),VLOOKUP(H23,darbinis!B:E,4,0)),\"\"),\"\")","v":""},null,{"$error":"#REF!"}]
[null,null,null,null,"Suma",{"$f":"SUM(F15)","v":0}]

{"sheet":"darbinis","index":2,"n_rows":178,"n_cols":26,"rows_kept":178,"cut":false,"hidden":true,"merged":[]}
["Grįžtamųjų medžiagų atsiradimo priežastis: ",null,"Prekės supirkėjas:","Prekės supirkėjas:",null,null,null,null,null,null,null,null,null,null,null,null,null,null,null,null,null,"Scala kodas","Scala padadinimas","UAB \"Metransa\"","UAB \"Ruvis\""]
["pasirinkti",null,"pasirinkti","pasirinkti",null,null,null,"Rangovas",null,null,"Rangos darbų sutarties Nr.",null,null,null,null,null,"Nutrauktos darbų sutartys",null,null,null,null,17011002001,"Transformatorius alyvinis 1-fz 4/10/0,23 ",70,30,22101000340067]
["2525002 Rekonstravimas, įrenginių likvidavimas",null,"Metransa, UAB (Vilniaus regionas)","Vidvestuma, UAB (Kauno regionas)",null,null,null,"pasirinkti",null,null,"pasirinkti",null,null,null,null,null,null,null,null,null,null,17011002002,"Transformatorius alyvinis 1-fz 10/10/0,23 ",75,32,22101000340068]
["6111007 Medžiagų nurašymas",null,"Vidvestuma, UAB (Kauno regionas)","Vidvestuma, UAB (Klaipėdos regionas)",null,null,null,"Anykščių energetinė statyba UAB",null,"Anykščių energetinė statyba UAB","40410/591341",null,null,null,null,null,"Apšvietimas UAB","40410/591698","iš IlI etapo",null,null,17011502003,"Transformatorius alyvinis 3-fz 10/10/0,4 ",70,30,22101000340086]
[null,null,"Vidvestuma, UAB (Klaipėdos regionas)","Vidvestuma, UAB (Šiaulių regionas)",null,null,null,"ATP Baltic UAB",null,"Anykščių energetinė statyba, UAB","40410/510548",null,null,null,null,null,"Apšvietimas UAB","40410/591716","iš IlI etapo",null,null,17011502507,"Transformatorius alyvinis 3-fz 16/10/0,4 ",75,32,22101000340087]
[null,null,"Vidvestuma, UAB (Šiaulių regionas)","Vidvestuma, UAB (Utenos regionas)",null,"Pažangi energetika UAB",null,"Apšvietimas UAB",null,"Anykščių energetinė statyba, UAB","40410/521201",null,null,null,null,null,"Elektra ir Co UAB","40410/591711","iš IlI etapo",null,null,17011503001,"Transformatorius alyvinis 3-fz 20/10/0,4",75,66,22101000340088]
[null,null,"Vidvestuma, UAB (Utenos regionas)",null,null,null,null,"Bosleta UAB",null,"ATP Baltic UAB","40410/591349",null,null,null,null,null,"EXTO UAB","40410/591710","iš IlI etapo",null,null,17011505002,"Transformatorius alyvinis 3-fz 25/10/0,4 ",130,100,22101000340089]
[null,null,null,null,null,null,null,"Elektra ir Co UAB",null,null,null,null,null,null,null,null,"Klaipėdos energetika AB","40410/591342","iš II etapo",null,null,17011506001,"Transformatorius alyvinis 3-fz 30/10/0,4 ",100,100,22101000340090]
["Rangovo veiksmais",null,null,null,null,null,null,"Elektra UAB",null,null,null,null,null,null,null,null,null,null,null,null,null,17011510005,"Transformatorius alyvinis 3-fz 40/10/0,4 ",140,100,22101000340091]
["pasirinkti",null,null,null,null,null,null,"Elektrifikacijos darbai UAB",null,null,null,null,null,null,null,null,null,null,null,null,null,17011512001,"Transformatorius alyvinis 3-fz 50/10/0,4 ",100,108,22101000340092]
["Rangovas pristato į ESO sandėlį",null,null,null,null,null,null,"Elektrifikacijos paslaugos UAB",null,null,null,null,null,null,null,null,null,null,null,null,null,17011514501,"Transformatorius alyvinis 3-fz 60/10/0,4 ",100,140,22101000340093]
["Rangovas pristato į supirktuvę",null,null,null,null,null,null,"Elektromontuotojas UAB",null,null,null,null,null,null,null,null,null,null,null,null,null,17011515005,"Transformatorius alyvinis 3-fz 63/10/0,4 ",250,148,22101000340094]
[null,null,null,null,null,null,null,"Elektros pajėgos UAB",null,null,null,null,null,null,null,null,"Elektra ir Co UAB","40410/521660",null,null,null,17011516001,"Transformatorius alyvinis 3-fz 75/10/0,4 ",160,150,22101000340095]
["Pasirinkti","Scala kodas","Scala padadinimas","UAB \"Metransa\"","UAB „Vidvestuma“ (Kauno regionas)","UAB „Vidvestuma“ (Klaipėdos, Šiaulių regionas))","UAB „Vidvestuma“ (Utenos regionas))","Elektros tinklas UAB",null,null,null,null,null,null,null,null,"Elektra ir Co UAB","40410/521624",null,null,null,17011517001,"Transformatorius alyvinis 3-fz 85/10/0,4",180,160,{"$error":"#N/A"}]
["4 kVA Vienfazis alyvinis galios transformatorius 10/0,2 kV",22101000340067,"Transformatorius alyvinis 1-fz 4/10/0,2",75,36,36,40,"Elektrovoltas UAB",null,null,null,null,null,null,null,null,"Elektra ir Co UAB","40410/521426",null,null,null,17011520005,"Transformatorius alyvinis 3-fz 100/10/0,4 ",250,200,22101000340096]
["10 kVA Vienfazis alyvinis galios transformatorius 10/0,2 kV",22101000340068,"Transformatorius alyvinis 1-fz 10/10/0,2",75,38,38,38,"Elmova UAB",null,null,null,null,null,null,null,null,"Elektra ir Co UAB","40410/521377",null,null,null,17011525014,"Transformatorius alyvinis 3-fz 160/10/0,4 ",370,274,22101000340097]
["1,25 kVA Vienfazis alyvinis galios transformatorius 10/0,23 kV",22101000340243,"Transformatorius alyvinis 1-fz 1,25/10/0,23 ",30,"Nėra","Nėra","Nėra","Energetikos ranga UAB",null,"Elektrifikacijos darbai UAB","40410/521619",null,null,null,null,null,"Elektra ir Co UAB","40410/521376",null,null,null,17011528002,"Transformatorius alyvinis 3-fz 180/10/0,4 ",250,280,22101000340098]
["2,5 kVA Vienfazis alyvinis galios transformatorius 10/0,23 kV",22101000340244,"Transformatorius alyvinis 1-fz 2,5/10/0,23 ",30,"Nėra","Nėra","Nėra","Energijos skirstymo operatorius",null,"Elektrifikacijos darbai UAB","40410/591353",null,null,null,null,null,"Elektra ir Co UAB","40410/591346",null,null,null,17011529002,"Transformatorius alyvinis 3-fz 200/10/0,4 ",250,312,22101000340099]
["4 kVA Vienfazis alyvinis galios transformatorius 10/0,23 kV",22101000340245,"Transformatorius alyvinis 1-fz 4/10/0,23 ",72,"Nėra","Nėra","Nėra","Energika UAB",null,null,null,null,null,null,null,null,"Elektra ir Co UAB","40410/591715",null,null,null,17011532010,"Transformatorius alyvinis 3-fz 250/10/0,4 ",460,384,22101000340100]
["6 kVA Vienfazis alyvinis galios transformatorius 10/0,23 kV",22101000340246,"Transformatorius alyvinis 1-fz 6/10/0,23 ",72,"Nėra","Nėra","Nėra","Energo LT UAB",null,null,null,null,null,null,null,null,"Elektra ir Co UAB","40410/591699",null,null,null,17011532502,"Transformatorius alyvinis 3-fz 300/10/0,4 ",440,400,{"$error":"#N/A"}]
["10 kVA Vienfazis alyvinis galios transformatorius 10/0,23 kV",22101000340247,"Transformatorius alyvinis 1-fz 10/10/0,23 ",72,"Nėra","Nėra","Nėra","Energostatika UAB",null,"Elektros tinklas UAB","40410/591344",null,null,null,null,null,"Elektra ir Co UAB","40410/591701",null,null,null,17011532501,"Transformatorius alyvinis 3-fz 315/10/0,4 ",450,457,22101000340101]
["10 kVA Trifazis alyvinis galios transformatorius 10/0,4 kV",22101000340086,"Transformatorius alyvinis 3-fz 10/10/0,4 ",72,36,36,50,"EXTO UAB",null,"Elektros tinklas UAB","40410/511734",null,null,null,null,null,"Elektra ir Co UAB","40410/591706",null,null,null,17011533001,"Transformatorius alyvinis 3-fz 320/10/0,4 ",480,480,22101000340102]
["16 kVA Trifazis alyvinis galios transformatorius 10/0,4 kV",22101000340087,"Transformatorius alyvinis 3-fz 16/10/0,4 ",77,38,38,90,"Fisanta UAB",null,null,null,null,null,null,null,null,"Elektra ir Co UAB","40410/591702",null,null,null,17011540002,"Transformatorius alyvinis 3-fz 400/10/0,4 ",560,540,22101000340103]
["20 kVA Trifazis alyvinis galios transformatorius 10/0,4 kV",22101000340088,"Transformatorius alyvinis 3-fz 20/10/0,4",77,79,79,90,"Indastrus UAB",null,null,null,null,null,null,null,null,"Elektra ir Co UAB","40410/591718",null,null,null,17011546001,"Transformatorius alyvinis 3-fz 500/10/0,5",600,560,22101000340105]
["25 kVA Trifazis alyvinis galios transformatorius 10/0,4 kV",22101000340089,"Transformatorius alyvinis 3-fz 25/10/0,4 ",97,100,96,96,"Klaipėdos energetika AB",null,null,null,null,null,null,null,null,"Elektra ir Co UAB","40410/591703",null,null,null,17011543001,"Transformatorius alyvinis 3-fz 560/10/0,4 ",700,640,22101000340104]
["30 kVA Trifazis alyvinis galios transformatorius 10/0,4 kV",22101000340090,"Transformatorius alyvinis 3-fz 30/10/0,4 ",77,120,120,120,"Kugeta UAB",null,null,null,null,null,null,"EXTOUAB",null,"Elektra ir Co UAB","40410/501495",null,null,null,17011548009,"Transformatorius alyvinis 3-fz 630/10/0,4 ",900,720,22101000340106]
["40 kVA Trifazis alyvinis galios transformatorius 10/0,4 kV",22101000340091,"Transformatorius alyvinis 3-fz 40/10/0,4 ",105,110,108,108,"Pažangi energetika UAB",null,null,null,null,null,null,null,null,"Elektra ir Co UAB","40410/591697",null,null,null,17011552002,"Transformatorius alyvinis 3-fz 800/10/0,4",1010,1120,22101000340107]
["50 kVA Trifazis alyvinis galios transformatorius 10/0,4 kV",22101000340092,"Transformatorius alyvinis 3-fz 50/10/0,4 ",100,129,129,140,"TETAS UAB",null,"TETAS UAB","40410/521659",null,null,null,null,null,"Elektra ir Co UAB","40410/511429",null,null,null,17011556003,"Transformatorius alyvinis 3-fz 1000/10/0,4 ",1000,936,22101000340108]
["60 kVA Trifazis alyvinis galios transformatorius 10/0,4 kV",22101000340093,"Transformatorius alyvinis 3-fz 60/10/0,4 ",87,140,133,133,"Vadema UAB",null,"TETAS UAB","40410/511442",null,null,null,null,null,"Elektra ir Co UAB","40410/511425",null,null,null,17011558005,"Transformatorius alyvinis 3-fz 1250/10/0,4",1200,1080,{"$error":"#N/A"}]
["63 kVA Trifazis alyvinis galios transformatorius 10/0,4 kV",22101000340094,"Transformatorius alyvinis 3-fz 63/10/0,4 ",165,148,138,138,"Vakarų energetika UAB",null,"TETAS UAB","40410/511646",null,null,null,null,null,"Elektra ir Co UAB","40410/511932",null,null,null,17011564002,"Transformatorius alyvinis 3-fz 1600/10/0,4 ",1300,1200,22101000340109]
["75 kVA Trifazis alyvinis galios transformatorius 10/0,4 kV",22101000340095,"Transformatorius alyvinis 3-fz 75/10/0,4 ",195,180,180,200,"Vilniaus energetinė statyba AB",null,"TETAS UAB","40410/511490",null,null,null,null,null,"Elektra ir Co UAB","40410/512225",null,null,null,17350112004,"Kompensacinė ritė 10kV 380/10 ",840,270,22101000340006]
["85 kVA Trifazis alyvinis galios transformatorius 10/0,4 kV",22101000340207,"Transformatorius alyvinis 3-fz 85/10/0,4",195,192,192,210,"Vytrita UAB",null,"TETAS UAB","40410/591335",null,null,null,null,null,"Elektra ir Co UAB","40410/520137",null,null,null,17350112015,"Kompensavimo ritė 10kV 480/10",850,560,22101000340010]
["100 kVA Trifazis alyvinis galios transformatorius 10/0,4 kV",22101000340096,"Transformatorius alyvinis 3-fz 100/10/0,4 ",182,200,169,162,"Pažangi energetika UAB",null,"TETAS UAB","40410/591340",null,null,null,null,null,"Elektra ir Co UAB","40410/520171",null,null,null,17350112002,"Kompensavimo ritė 10kV 300/10",800,250,22101000340005]
["160 kVA Trifazis alyvinis galios transformatorius 10/0,4 kV",22101000340097,"Transformatorius alyvinis 3-fz 160/10/0,4 ",202,260,242,232,null,null,"Vilniaus energetinė statyba AB","40410/591351",null,null,null,null,null,"Elektra ir Co UAB","40410/520855",null,null,null,17350112018,"Kompensavimo ritė 10kV 400/10",800,283,22101000340011]
["180 kVA Trifazis alyvinis galios transformatorius 10/0,4 kV",22101000340098,"Transformatorius alyvinis 3-fz 180/10/0,4 ",264,280,266,300,null,null,null,null,null,null,null,null,null,"Elektra ir Co UAB","40410/521234",null,null,null,17350112019,"Kompensavimo ritė 10kV 30/10",100,220,{"$error":"#N/A"}]
["200 kVA Trifazis alyvinis galios transformatorius 10/0,4 kV",22101000340099,"Transformatorius alyvinis 3-fz 200/10/0,4 ",280,374,374,374,null,null,null,null,null,null,null,null,null,"Elektra ir Co UAB","40410/521199"]
["250 kVA Trifazis alyvinis galios transformatorius 10/0,4 kV",22101000340100,"Transformatorius alyvinis 3-fz 250/10/0,4 ",310,384,384,384]
["300 kVA Trifazis alyvinis galios transformatorius 10/0,4 kV",22101000340208,"Transformatorius alyvinis 3-fz 300/10/0,4 ",410,480,480,530,null,null,null,null,null,null,null,null,null,"Klaipėdos energetika AB","40410/521604"]
["315 kVA Trifazis alyvinis galios transformatorius 10/0,4 kV",22101000340101,"Transformatorius alyvinis 3-fz 315/10/0,4 ",700,548,548,548,null,null,null,null,null,null,null,null,null,"Klaipėdos energetika AB","40410/521375"]
["320 kVA Trifazis alyvinis galios transformatorius 10/0,4 kV",22101000340102,"Transformatorius alyvinis 3-fz 320/10/0,4 ",615,576,576,576,null,null,null,null,null,null,null,null,null,"Klaipėdos energetika AB","40410/591332"]
["400 kVA Trifazis alyvinis galios transformatorius 10/0,4 kV",22101000340103,"Transformatorius alyvinis 3-fz 400/10/0,4 ",455,540,540,540,null,null,null,null,null,null,null,null,null,"Klaipėdos energetika AB","40410/591343"]
["500 kVA Trifazis alyvinis galios transformatorius 10/0,4 kV",22101000340105,"Transformatorius alyvinis 3-fz 500/10/0,5",640,672,672,672,"Techninis prižiūrėtojas","Skyrius","Elektromontuotojas UAB","40410/521380",null,null,null,null,null,"Klaipėdos energetika AB","40410/591347"]
["560 kVA Trifazis alyvinis galios transformatorius 10/0,4 kV",22101000340104,"Transformatorius alyvinis 3-fz 560/10/0,4 ",850,768,768,768,"Aleksandras Pozniakovas",47031,"Elektromontuotojas UAB","40410/521300",null,null,null,null,null,"Klaipėdos energetika AB","40410/591345"]
["630 kVA Trifazis alyvinis galios transformatorius 10/0,4 kV",22101000340106,"Transformatorius alyvinis 3-fz 630/10/0,4 ",737,864,864,864,"Algimantas Barkus",47031,"Elektromontuotojas UAB","40410/521299",null,null,null,null,null,"Klaipėdos energetika AB","40410/591342"]
["800 kVA Trifazis alyvinis galios transformatorius 10/0,4 kV",22101000340107,"Transformatorius alyvinis 3-fz 800/10/0,4",970,1344,1344,1344,"Algirdas Ruzveltas",43033,"Elektromontuotojas UAB","40410/511822",null,null,null,null,null,"Klaipėdos energetika AB","40410/511415"]
["1000 kVA Trifazis alyvinis galios transformatorius 10/0,4 kV",22101000340108,"Transformatorius alyvinis 3-fz 1000/10/0,4 ",1025,1123,1123,1123,"Algis Mikelionis",46031,"Elektromontuotojas UAB","40410/591350",null,null,null,null,null,"Klaipėdos energetika AB","40410/521233"]
["1250 kVA Trifazis alyvinis galios transformatorius 10/0,4 kV",22101000340209,"Transformatorius alyvinis 3-fz 1250/10/0,4",1300,1296,1296,1296,"Algis Sutkaitis",42033,"Elektromontuotojas UAB","40410/591705"]
["1600 kVA Trifazis alyvinis galios transformatorius 10/0,4 kV",22101000340109,"Transformatorius alyvinis 3-fz 1600/10/0,4 ",1300,1440,1440,1440,"Alius Giedraitis",46031,"Elektromontuotojas UAB","40410/511072"]
["10 kV Kompensacinė ritė 160/10",22101000340234,"Kompensavimo ritė 10kV 160/10",820,567,567,567,"Almantas Subačius",47031,"Kugeta UAB","40410/501555"]
["10 kV Kompensacinė ritė 190/10",22101000340235,"Kompensavimo ritė 10kV 190/10",820,567,567,567,"Andrius Oleinikas",42033]
["10 kV Kompensacinė ritė 300/10",22101000340005,"Kompensavimo ritė 10kV 300/10",580,693,693,693,"Antanas Magelinskas",45031,"Energo LT UAB","40410/501535",null,null,null,null,null,"Vytrita UAB","40410/521605"]
["10 kV Kompensacinė ritė 380/10",22101000340006,"Kompensavimo ritė 10kV 380/10 ",1050,718,718,718,"Arnas Januškonis",46031,"Energo LT UAB","40410/521374",null,null,null,null,null,"Vytrita UAB","40410/521601"]
["10 kV Kompensacinė ritė 400/10",22101000340011,"Kompensavimo ritė 10kV 400/10",980,1033,1033,1033,"Artūras Kmieliauskas",42031,null,null,null,null,null,null,null,"Vytrita UAB","40410/521302"]
["10 kV Kompensacinė ritė 480/10",22101000340010,"Kompensavimo ritė 10kV 480/10",980,1033,1033,1033,"Arūnas Rumša",42031,"Energika UAB","40410/521373",null,null,null,null,null,"Vytrita UAB","40410/591352"]
["10 kV Kompensacinė ritė 485/10",22101000340236,"Kompensavimo ritė 10kV 485/10",980,1083,1083,1083,"Arvydas Klapatauskas",43031,"Energika UAB","40410/591333",null,null,null,null,null,"Vytrita UAB","40410/591336"]
["10 kV Kompensacinė ritė 30/10OU1",22101000340210,"Kompensavimo ritė 10kV 30/10",810,630,630,630,"Arvydas Skardžius",45031,"Energika UAB","40410/591720",null,null,null,null,null,"Vytrita UAB","40410/591339"]
[null,null,null,null,null,null,null,"Dalia Petrauskienė",43033,"Energika UAB","40410/591713",null,null,null,null,null,"Vytrita UAB","40410/591717"]
[null,null,null,null,null,null,null,"Dalius Vaižmužis",45031,"Energika UAB","40410/501494",null,null,null,null,null,"Vytrita UAB","40410/591719"]
[null,null,null,null,null,null,null,"Darius Virvilas",42033,"Energika UAB","40410/501517",null,null,null,null,null,"Vytrita UAB","40410/501553"]
[null,null,null,null,null,null,null,"Donatas Mačerinskas",40270,"Energika UAB","40410/510557",null,null,null,null,null,"Vytrita UAB","40410/510675"]
[null,null,null,null,null,null,null,"Egidijus Zasčiurinskas",40220,"Energika UAB","40410/510547",null,null,null,null,null,"Vytrita UAB","40410/510555"]
[null,null,null,null,null,null,null,"Evaldas Alimas",43033,"Energika UAB","40410/511672",null,null,null,null,null,"Vytrita UAB","40410/510562"]
[null,null,null,null,null,null,null,"Gediminas Kubilius",46031,"Energika UAB","40410/511693",null,null,null,null,null,"Vytrita UAB","40410/511129"]
[null,null,null,null,null,null,null,"Gintaras Krencius",43031,"Energika UAB","40410/521192",null,null,null,null,null,"Vytrita UAB","40410/511114"]
[null,null,null,null,null,null,null,"Gintautas Kaminskas",45031,null,null,null,null,null,null,null,"Vytrita UAB","40410/511413"]
[null,null,null,null,null,null,null,"Gintautas Taparauskas",42031,"Vakarų energetika, UAB","40410/510546",null,null,null,null,null,"Vytrita UAB","40410/511414"]
[null,null,null,null,null,null,null,"Jevgenijus Čaikinas",47031,"Vakarų energetika, UAB","40410/520160",null,null,null,null,null,"Vytrita UAB","40410/520017"]
[null,null,null,null,null,null,null,"Justas Marčiukaitis",42033,null,null,null,null,null,null,null,"Vytrita UAB","40410/520020"]
[null,null,null,null,null,null,null,"Martynas Šeškauskis",43033,null,null,null,null,null,null,null,"Vytrita UAB","40410/520041"]
[null,null,null,null,null,null,null,"Rimas Lazickas",45031,null,null,null,null,null,null,null,"Vytrita UAB","40410/520701"]
[null,null,null,null,null,null,null,"Rimgaudas Kreivėnas",46031,"Energostatika, UAB","40410/510561"]
[null,null,null,null,null,null,null,"Rita Barkauskienė",43036,"Energostatika, UAB","40410/521216",null,null,null,null,null,"Elmova UAB","40410/511650"]
[null,null,null,null,null,null,null,"Rolanas Jočys",42033,null,null,null,null,null,null,null,"Elmova UAB","40410/511796"]
[null,null,null,null,null,null,null,"Romualdas Leimontas",45032,"Energetikos ranga, UAB","40410/510556",null,null,null,null,null,"Elmova UAB","40410/521618"]
[null,null,null,null,null,null,null,"Saulius Urbanavičius",47031,null,null,null,null,null,null,null,"Elmova UAB","40410/521606"]
[null,null,null,null,null,null,null,"Stasys Guobys",47031]
[null,null,null,null,null,null,null,"Tomas Vaicekavičius",42031]
[null,null,null,null,null,null,null,"Vaidotas Vaitkus",43033,"Fisanta UAB","40410/511191"]
[null,null,null,null,null,null,null,"Valdas Perkauskas",42031,"Fisanta UAB","40410/511189",null,null,null,null,null,"Elektrovoltas UAB","40410/520021"]
[null,null,null,null,null,null,null,"Valentas Strigūnas",43031]
[null,null,null,null,null,null,null,"Vidas Zmitrys",45031]
[null,null,null,null,null,null,null,"Vigandas Adomavičius",47031]
[null,null,null,null,null,null,null,"Virginijus Čepulis",45031,"Elektros pajėgos UAB","40410/511190"]
[null,null,null,null,null,null,null,"Virginijus Jurkšaitis",45031,"Elektros pajėgos UAB","40410/520940"]
[null,null,null,null,null,null,null,"Virginijus Norkus",43031]
[null,null,null,null,null,null,null,"Vitalijus Januševičius",40250]
[null,null,null,null,null,null,null,"Vytautas Bagdonas",46031,"Elektra UAB","40410/511126",null,null,null,null,null,"Elektrifikacijos paslaugos UAB","40410/520035"]
[null,null,null,null,null,null,null,"Vytautas Kavaliauskas",46031]
[null,null,null,null,null,null,null,"Vytautas Lažaunykas",46031]
[null,null,null,null,null,null,null,"Vytautas Liubomirskas",45031]
[null,null,null,null,null,null,null,"Kitas"]
[]
[]
[null,null,null,null,null,null,null,null,null,"Bosleta UAB","40410/511193",null,null,null,null,null,"Indastrus UAB","40410/520036"]
[null,null,null,null,null,null,null,null,null,null,null,null,null,null,null,null,"Indastrus UAB","40410/520376"]
[]
[null,null,null,null,null,null,null,null,null,"Vadema UAB","40410/521617"]
[null,null,null,null,null,null,null,null,null,"Vadema UAB","40410/521202"]
[null,null,null,null,null,null,null,null,null,"Vadema UAB","40410/510549"]
[null,null,null,null,null,null,null,null,null,"Vadema UAB","40410/511192"]
[]
[null,null,null,null,null,null,null,null,null,null,null,null,null,null,null,null,"Apšvietimas UAB","40410/520012"]
[null,null,null,null,null,null,null,null,null,null,null,null,null,null,null,null,"Apšvietimas UAB","40410/521301"]
[]
[]
[]
[null,null,null,null,null,null,null,null,null,"EXTO UAB","40410/521658"]
[null,null,null,null,null,null,null,null,null,"EXTO UAB","40410/521654"]
[null,null,null,null,null,null,null,null,null,"EXTO UAB","40410/591708"]
[]
[]
[]
[]
[]
[]
[]
[]
[null,null,null,null,null,null,null,null,null,"pasirinkti"]
[null,null,null,null,null,null,null,null,null,"A Žilinskio ir Ko UAB"]
[null,null,null,null,null,null,null,null,null,"Anykščių energetinė statyba UAB"]
[null,null,null,null,null,null,null,null,null,"APS Energyline UAB"]
[null,null,null,null,null,null,null,null,null,"APS grupė UAB"]
[null,null,null,null,null,null,null,null,null,"Apšvietimas UAB"]
[null,null,null,null,null,null,null,null,null,"Aremsa UAB"]
[null,null,null,null,null,null,null,null,null,"ATP Baltic UAB"]
[null,null,null,null,null,null,null,null,null,"Bosleta UAB"]
[null,null,null,null,null,null,null,null,null,"Elektra ir Co UAB"]
[null,null,null,null,null,null,null,null,null,"Elektra UAB"]
[null,null,null,null,null,null,null,null,null,"Elektrifikacijos darbai UAB"]
[null,null,null,null,null,null,null,null,null,"Elektrifikacijos paslaugos UAB"]
[null,null,null,null,null,null,null,null,null,"Elektriniai matavimai UAB "]
[null,null,null,null,null,null,null,null,null,"Elektro LT UAB"]
[null,null,null,null,null,null,null,null,null,"Elektromontuotojas UAB"]
[null,null,null,null,null,null,null,null,null,"Elektros darbai UAB"]
[null,null,null,null,null,null,null,null,null,"Elektros pajėgos UAB"]
[null,null,null,null,null,null,null,null,null,"Elektros tinklas UAB"]
[null,null,null,null,null,null,null,null,null,"Elektros tinklų statyba AB"]
[null,null,null,null,null,null,null,null,null,"Elektrovatas UAB"]
[null,null,null,null,null,null,null,null,null,"Elektrovoltas UAB"]
[null,null,null,null,null,null,null,null,null,"Elmava UAB"]
[null,null,null,null,null,null,null,null,null,"Elmonta UAB"]
[null,null,null,null,null,null,null,null,null,"Elmova UAB"]
[null,null,null,null,null,null,null,null,null,"Elvaradas UAB"]
[null,null,null,null,null,null,null,null,null,"Energetikos ranga UAB"]
[null,null,null,null,null,null,null,null,null,"Energetikos tinklų institutas AB"]
[null,null,null,null,null,null,null,null,null,"Energijos skirstymo operatorius AB"]
[null,null,null,null,null,null,null,null,null,"Energika UAB"]
[null,null,null,null,null,null,null,null,null,"EnergoLT UAB"]
[null,null,null,null,null,null,null,null,null,"Energostatika UAB"]
[null,null,null,null,null,null,null,null,null,"Eresta UAB"]
[null,null,null,null,null,null,null,null,null,"ES Energy UAB"]
[null,null,null,null,null,null,null,null,null,"Exto UAB"]
[null,null,null,null,null,null,null,null,null,"Fisanta UAB"]
[null,null,null,null,null,null,null,null,null,"Hidro Elektra UAB"]
[null,null,null,null,null,null,null,null,null,"Indastrus UAB"]
[null,null,null,null,null,null,null,null,null,"Jarkesta UAB"]
[null,null,null,null,null,null,null,null,null,"Kalistara UAB"]
[null,null,null,null,null,null,null,null,null,"Kauno tiltai AB"]
[null,null,null,null,null,null,null,null,null,"Klaipėdos energetika AB"]
[null,null,null,null,null,null,null,null,null,"KRS UAB"]
[null,null,null,null,null,null,null,null,null,"Kugeta UAB"]
[null,null,null,null,null,null,null,null,null,"Labas GAS UAB"]
[null,null,null,null,null,null,null,null,null,"Neiluva UAB"]
[null,null,null,null,null,null,null,null,null,"Nekta IĮ"]
[null,null,null,null,null,null,null,null,null,"Pažangi energetika UAB"]
[null,null,null,null,null,null,null,null,null,"Šiaulių Rymonta UAB"]
[null,null,null,null,null,null,null,null,null,"Solar energy LT UAB"]
[null,null,null,null,null,null,null,null,null,"Statkorpas AB"]
[null,null,null,null,null,null,null,null,null,"Stiemo UAB"]
[null,null,null,null,null,null,null,null,null,"Telekomservisas UAB"]
[null,null,null,null,null,null,null,null,null,"TETAS UAB"]
[null,null,null,null,null,null,null,null,null,"Vadema UAB"]
[null,null,null,null,null,null,null,null,null,"Vakarų energetika UAB"]
[null,null,null,null,null,null,null,null,null,"Vilniaus energetinė statyba AB"]
[null,null,null,null,null,null,null,null,null,"Vytmarca MB"]
[null,null,null,null,null,null,null,null,null,"Vytrita UAB"]
[null,null,null,null,null,null,null,null,null,"Žemaitijos energetika UAB"]
[null,null,null,null,null,null,null,null,null,"Žilinskis ir Co UAB"]